[Event "Titled Tuesday Blitz December 27 Late 2022"]
[White "Skvortsov, Andrei"]
[Black "Ladan, Nicholas"]
[WhiteFideId "24108600"]
[BlackFideId "30918855"]
[WhiteElo "2313"]
[BlackElo "2228"]
[Result "0-1"]
[Round "09"]
[TimeControl "180+2"]
[Date "2022.12.27"]
[WhiteClock "0:00:07"]
[BlackClock "0:00:07"]

1. c4 {[%clk 0:02:56]}  e5 {[%clk 0:02:58]} 2. Nc3 {[%clk 0:02:52]}  Nc6 {[%clk 0:02:59]} 3. Nf3 {[%clk 0:02:51]}  Bc5 {[%clk 0:02:57]} 4. e3 {[%clk 0:02:50]}  d6 {[%clk 0:02:57]} 5. a3 {[%clk 0:02:49]}  a6 {[%clk 0:02:51]} 6. d4 {[%clk 0:02:49]}  Ba7 {[%clk 0:02:50]} 7. dxe5 {[%clk 0:02:47]}  dxe5 {[%clk 0:02:49]} 8. Qxd8+ {[%clk 0:02:47]}  Kxd8 {[%clk 0:02:50]} 9. b4 {[%clk 0:02:40]}  f6 {[%clk 0:02:49]} 10. Bb2 {[%clk 0:02:36]}  Be6 {[%clk 0:02:47]} 11. O-O-O+ {[%clk 0:02:31]}  Kc8 {[%clk 0:02:42]} 12. h3 {[%clk 0:02:27]}  Nge7 {[%clk 0:02:41]} 13. Nd5 {[%clk 0:02:26]}  Rd8 {[%clk 0:02:37]} 14. Nxe7+ {[%clk 0:02:20]}  Nxe7 {[%clk 0:02:37]} 15. Bd3 {[%clk 0:02:05]}  Rxd3 {[%clk 0:01:54]} 16. Rxd3 {[%clk 0:02:06]}  e4 {[%clk 0:01:54]} 17. Nd4 {[%clk 0:02:03]}  Bxc4 {[%clk 0:01:52]} 18. Rc3 {[%clk 0:02:01]}  b5 {[%clk 0:01:52]} 19. Nb3 {[%clk 0:01:48]}  Nd5 {[%clk 0:01:48]} 20. Rxc4 {[%clk 0:01:48]}  bxc4 {[%clk 0:01:47]} 21. Na5 {[%clk 0:01:45]}  c3 {[%clk 0:01:41]} 22. Ba1 {[%clk 0:01:44]}  Kd7 {[%clk 0:01:29]} 23. Rd1 {[%clk 0:01:29]}  Ke6 {[%clk 0:01:27]} 24. Kc2 {[%clk 0:01:29]}  c5 {[%clk 0:01:22]} 25. Bxc3 {[%clk 0:01:26]}  cxb4 {[%clk 0:01:17]} 26. Bxb4 {[%clk 0:01:25]}  Rc8+ {[%clk 0:01:06]} 27. Kb3 {[%clk 0:01:25]}  f5 {[%clk 0:01:05]} 28. h4 {[%clk 0:00:55]}  f4 {[%clk 0:00:52]} 29. Nc4 {[%clk 0:00:24]}  fxe3 {[%clk 0:00:49]} 30. Nxe3 {[%clk 0:00:24]}  Bxe3 {[%clk 0:00:25]} 31. fxe3 {[%clk 0:00:24]}  Ke5 {[%clk 0:00:23]} 32. Bd2 {[%clk 0:00:19]}  Rf8 {[%clk 0:00:20]} 33. Bc1 {[%clk 0:00:18]}  Rf2 {[%clk 0:00:19]} 34. Rd2 {[%clk 0:00:16]}  Rf1 {[%clk 0:00:14]} 35. Bb2+ {[%clk 0:00:16]}  Ke6 {[%clk 0:00:14]} 36. Bxg7 {[%clk 0:00:12]}  Re1 {[%clk 0:00:04]} 37. Bd4 {[%clk 0:00:09]}  Nxe3 {[%clk 0:00:04]} 38. Kb4 {[%clk 0:00:07]}  Nd5+ {[%clk 0:00:03]} 39. Kc5 {[%clk 0:00:07]}  Rc1+ {[%clk 0:00:03]} 40. Bc3 {[%clk 0:00:07]}  Rxc3+ {[%clk 0:00:02]} 41. Kd4 {[%clk 0:00:08]}  Rxa3 {[%clk 0:00:02]} 42. Kxe4 {[%clk 0:00:09]}  Ra4+ {[%clk 0:00:03]} 43. Kf3 {[%clk 0:00:09]}  Rxh4 {[%clk 0:00:04]} 44. Ra2 {[%clk 0:00:09]}  Rh5 {[%clk 0:00:05]} 45. Rxa6+ {[%clk 0:00:09]}  Ke5 {[%clk 0:00:05]} 46. Ra8 {[%clk 0:00:08]}  Nf6 {[%clk 0:00:05]} 47. Ra5+ {[%clk 0:00:07]}  Nd5 {[%clk 0:00:06]} 48. Ra8 {[%clk 0:00:08]}  Rh6 {[%clk 0:00:06]} 49. g4 {[%clk 0:00:08]}  Ne7 {[%clk 0:00:04]} 50. Kg3 {[%clk 0:00:08]}  Re6 {[%clk 0:00:04]} 51. Rh8 {[%clk 0:00:07]}  h6 {[%clk 0:00:04]} 52. Ra8 {[%clk 0:00:07]}  Kf6 {[%clk 0:00:04]} 53. Rf8+ {[%clk 0:00:08]}  Kg7 {[%clk 0:00:04]} 54. Ra8 {[%clk 0:00:09]}  Ng6 {[%clk 0:00:04]} 55. Ra7+ {[%clk 0:00:09]}  Re7 {[%clk 0:00:05]} 56. Ra5 {[%clk 0:00:10]}  Rf7 {[%clk 0:00:05]} 57. Rb5 {[%clk 0:00:10]}  Nf8 {[%clk 0:00:06]} 58. Rb6 {[%clk 0:00:10]}  Nh7 {[%clk 0:00:06]} 59. Rb5 {[%clk 0:00:11]}  Ng5 {[%clk 0:00:07]} 60. Rb3 {[%clk 0:00:09]}  Kg6 {[%clk 0:00:06]} 61. Rb6+ {[%clk 0:00:09]}  Rf6 {[%clk 0:00:07]} 62. Rb3 {[%clk 0:00:10]}  Re6 {[%clk 0:00:07]} 63. Ra3 {[%clk 0:00:10]}  Kf6 {[%clk 0:00:07]} 64. Kf4 {[%clk 0:00:10]}  Re4+ {[%clk 0:00:08]} 65. Kg3 {[%clk 0:00:10]}  Rd4 {[%clk 0:00:07]} 66. Ra6+ {[%clk 0:00:10]}  Ne6 {[%clk 0:00:08]} 67. Kh4 {[%clk 0:00:09]}  Rd5 {[%clk 0:00:08]} 68. Rb6 {[%clk 0:00:09]}  Re5 {[%clk 0:00:08]} 69. Ra6 {[%clk 0:00:09]}  Kg7 {[%clk 0:00:08]} 70. Rb6 {[%clk 0:00:09]}  Nf8 {[%clk 0:00:03]} 71. Kg3 {[%clk 0:00:09]}  Nh7 {[%clk 0:00:03]} 72. Kf4 {[%clk 0:00:09]}  Rg5 {[%clk 0:00:04]} 73. Rb7+ {[%clk 0:00:08]}  Kg6 {[%clk 0:00:03]} 74. Rb6+ {[%clk 0:00:09]}  Nf6 {[%clk 0:00:04]} 75. Kf3 {[%clk 0:00:09]}  Re5 {[%clk 0:00:02]} 76. Rb4 {[%clk 0:00:09]}  Rg5 {[%clk 0:00:02]} 77. Rb6 {[%clk 0:00:09]}  Rd5 {[%clk 0:00:02]} 78. Ra6 {[%clk 0:00:09]}  Rb5 {[%clk 0:00:02]} 79. Kf4 {[%clk 0:00:09]}  Rb4+ {[%clk 0:00:03]} 80. Kf3 {[%clk 0:00:09]}  Rb3+ {[%clk 0:00:03]} 81. Kf4 {[%clk 0:00:08]}  Rb4+ {[%clk 0:00:03]} 82. Kf3 {[%clk 0:00:08]}  Kg5 {[%clk 0:00:04]} 83. Ra5+ {[%clk 0:00:08]}  Kh4 {[%clk 0:00:04]} 84. Ra6 {[%clk 0:00:06]}  Nxg4 {[%clk 0:00:05]} 85. Rg6 {[%clk 0:00:06]}  h5 {[%clk 0:00:05]} 86. Rg8 {[%clk 0:00:06]}  Rb3+ {[%clk 0:00:05]} 87. Kg2 {[%clk 0:00:07]}  Ne3+ {[%clk 0:00:04]} 88. Kf2 {[%clk 0:00:07]}  Nf5 {[%clk 0:00:05]} 89. Rf8 {[%clk 0:00:07]}  Kg4 {[%clk 0:00:05]} 90. Rg8+ {[%clk 0:00:08]}  Kf4 {[%clk 0:00:06]} 91. Kg2 {[%clk 0:00:08]}  h4 {[%clk 0:00:06]} 92. Kh2 {[%clk 0:00:09]}  Rb2+ {[%clk 0:00:05]} 93. Kh3 {[%clk 0:00:08]}  Rb3+ {[%clk 0:00:06]} 94. Kh2 {[%clk 0:00:09]}  Rg3 {[%clk 0:00:06]} 95. Ra8 {[%clk 0:00:09]}  Ne3 {[%clk 0:00:05]} 96. Ra4+ {[%clk 0:00:09]}  Kf3 {[%clk 0:00:06]} 97. Rxh4 {[%clk 0:00:06]}  Ng4+ {[%clk 0:00:05]} 98. Kh1 {[%clk 0:00:06]}  Nf2+ {[%clk 0:00:06]} 99. Kh2 {[%clk 0:00:07]}  Rg2# {[%clk 0:00:07]} 0-1


[Site "https://www.chess.com"]

[Event "Titled Tuesday Blitz December 27 Late 2022"]
[White "Smith, Garrett L"]
[Black "Dias, Joao Batista"]
[WhiteFideId "2024829"]
[BlackFideId "2108240"]
[WhiteElo "2047"]
[BlackElo "1796"]
[Result "1/2-1/2"]
[Round "09"]
[TimeControl "180+2"]
[Date "2022.12.27"]
[WhiteClock "0:00:18"]
[BlackClock "0:00:50"]

1. e4 {[%clk 0:03:00]}  e5 {[%clk 0:02:59]} 2. Nf3 {[%clk 0:03:00]}  Nc6 {[%clk 0:02:59]} 3. Bc4 {[%clk 0:03:00]}  Nf6 {[%clk 0:02:59]} 4. Ng5 {[%clk 0:03:01]}  d5 {[%clk 0:02:59]} 5. exd5 {[%clk 0:03:01]}  Na5 {[%clk 0:02:59]} 6. Bb5+ {[%clk 0:03:02]}  c6 {[%clk 0:02:59]} 7. dxc6 {[%clk 0:03:03]}  bxc6 {[%clk 0:03:00]} 8. Bd3 {[%clk 0:03:03]}  h6 {[%clk 0:02:59]} 9. Ne4 {[%clk 0:03:02]}  Be7 {[%clk 0:02:58]} 10. O-O {[%clk 0:03:02]}  O-O {[%clk 0:02:58]} 11. Ng3 {[%clk 0:03:02]}  c5 {[%clk 0:02:56]} 12. Bf5 {[%clk 0:02:57]}  Bb7 {[%clk 0:02:55]} 13. d3 {[%clk 0:02:57]}  Nc6 {[%clk 0:02:54]} 14. Nc3 {[%clk 0:02:38]}  Nd4 {[%clk 0:02:54]} 15. Re1 {[%clk 0:02:24]}  Re8 {[%clk 0:02:52]} 16. Nce4 {[%clk 0:02:02]}  Nxf5 {[%clk 0:02:48]} 17. Nxf6+ {[%clk 0:01:57]}  Bxf6 {[%clk 0:02:45]} 18. Nxf5 {[%clk 0:01:57]}  Qd5 {[%clk 0:02:41]} 19. Ne3 {[%clk 0:01:55]}  Qd4 {[%clk 0:02:39]} 20. Qg4 {[%clk 0:01:50]}  e4 {[%clk 0:02:30]} 21. Nf5 {[%clk 0:01:47]}  Qb4 {[%clk 0:02:23]} 22. Bxh6 {[%clk 0:01:24]}  exd3 {[%clk 0:02:18]} 23. Qxb4 {[%clk 0:00:50]}  cxb4 {[%clk 0:02:16]} 24. Bd2 {[%clk 0:00:44]}  dxc2 {[%clk 0:02:06]} 25. Rxe8+ {[%clk 0:00:31]}  Rxe8 {[%clk 0:02:05]} 26. Nd6 {[%clk 0:00:32]}  Re2 {[%clk 0:02:01]} 27. Bxb4 {[%clk 0:00:27]}  Bd5 {[%clk 0:01:56]} 28. Kf1 {[%clk 0:00:21]}  Bxb2 {[%clk 0:01:52]} 29. Kxe2 {[%clk 0:00:20]}  Bxa1 {[%clk 0:01:52]} 30. Kd2 {[%clk 0:00:20]}  Bxa2 {[%clk 0:01:50]} 31. Kxc2 {[%clk 0:00:19]}  Be5 {[%clk 0:01:49]} 32. Nc8 {[%clk 0:00:18]}  a6 {[%clk 0:01:43]} 33. h3 {[%clk 0:00:18]}  Kh7 {[%clk 0:01:34]} 34. Nd6 {[%clk 0:00:18]}  Bd5 {[%clk 0:01:31]} 35. f3 {[%clk 0:00:17]}  Kg6 {[%clk 0:01:26]} 36. Kd3 {[%clk 0:00:18]}  Kf6 {[%clk 0:01:24]} 37. Ne4+ {[%clk 0:00:18]}  Kf5 {[%clk 0:01:21]} 38. Nc5 {[%clk 0:00:18]}  Kf4 {[%clk 0:01:18]} 39. Be1 {[%clk 0:00:14]}  a5 {[%clk 0:01:11]} 40. Bxa5 {[%clk 0:00:14]}  Kg3 {[%clk 0:01:11]} 41. Ke3 {[%clk 0:00:15]}  Kxg2 {[%clk 0:01:11]} 42. Nd3 {[%clk 0:00:15]}  Bb8 {[%clk 0:01:08]} 43. Nf4+ {[%clk 0:00:13]}  Bxf4+ {[%clk 0:01:07]} 44. Kxf4 {[%clk 0:00:13]}  Bxf3 {[%clk 0:01:07]} 45. h4 {[%clk 0:00:13]}  g6 {[%clk 0:01:04]} 46. Kg5 {[%clk 0:00:13]}  Bh5 {[%clk 0:01:03]} 47. Kf6 {[%clk 0:00:13]}  Kh3 {[%clk 0:01:00]} 48. Kxf7 {[%clk 0:00:14]}  Kxh4 {[%clk 0:01:00]} 49. Bc7 {[%clk 0:00:12]}  Kg4 {[%clk 0:00:59]} 50. Kf6 {[%clk 0:00:12]}  Kf3 {[%clk 0:00:52]} 51. Ba5 {[%clk 0:00:12]}  Ke4 {[%clk 0:00:49]} 52. Kg5 {[%clk 0:00:13]}  Kd5 {[%clk 0:00:48]} 53. Be1 {[%clk 0:00:14]}  Ke4 {[%clk 0:00:48]} 54. Bh4 {[%clk 0:00:15]}  Kf3 {[%clk 0:00:48]} 55. Be1 {[%clk 0:00:15]}  Ke4 {[%clk 0:00:49]} 56. Ba5 {[%clk 0:00:16]}  Kf3 {[%clk 0:00:49]} 57. Bb6 {[%clk 0:00:17]}  Ke4 {[%clk 0:00:50]} 58. Ba5 {[%clk 0:00:18]} 1/2-1/2


[Site "https://www.chess.com"]

[Event "Titled Tuesday Blitz December 27 Late 2022"]
[White "Toncheva, Nadya"]
[Black "Novikov, Evgenij"]
[WhiteFideId "2924056"]
[BlackFideId "4125380"]
[WhiteElo "2295"]
[BlackElo "2276"]
[Result "0-1"]
[Round "09"]
[TimeControl "180+2"]
[Date "2022.12.27"]
[WhiteClock "0:00:14"]
[BlackClock "0:00:08"]

1. e4 {[%clk 0:03:00]}  c5 {[%clk 0:02:54]} 2. Nf3 {[%clk 0:03:00]}  d6 {[%clk 0:02:54]} 3. d4 {[%clk 0:03:00]}  cxd4 {[%clk 0:02:54]} 4. Nxd4 {[%clk 0:03:01]}  Nf6 {[%clk 0:02:55]} 5. Nc3 {[%clk 0:03:01]}  a6 {[%clk 0:02:55]} 6. Be3 {[%clk 0:02:59]}  e5 {[%clk 0:02:54]} 7. Nf3 {[%clk 0:02:59]}  Be7 {[%clk 0:02:54]} 8. Bc4 {[%clk 0:02:58]}  O-O {[%clk 0:02:53]} 9. O-O {[%clk 0:02:58]}  Nbd7 {[%clk 0:02:52]} 10. a4 {[%clk 0:02:54]}  Qc7 {[%clk 0:02:42]} 11. Qe2 {[%clk 0:02:49]}  Nc5 {[%clk 0:02:40]} 12. Bg5 {[%clk 0:02:44]}  Be6 {[%clk 0:02:28]} 13. Bxf6 {[%clk 0:02:38]}  Bxf6 {[%clk 0:02:28]} 14. Nd5 {[%clk 0:02:36]}  Bxd5 {[%clk 0:02:21]} 15. Bxd5 {[%clk 0:02:36]}  a5 {[%clk 0:02:15]} 16. Rfd1 {[%clk 0:02:25]}  g6 {[%clk 0:02:08]} 17. Ne1 {[%clk 0:02:22]}  Kg7 {[%clk 0:02:03]} 18. Nd3 {[%clk 0:02:21]}  Nd7 {[%clk 0:01:54]} 19. c3 {[%clk 0:01:32]}  Nb6 {[%clk 0:01:46]} 20. Bb3 {[%clk 0:01:31]}  Rad8 {[%clk 0:01:39]} 21. Ne1 {[%clk 0:01:22]}  Nd7 {[%clk 0:01:38]} 22. Nc2 {[%clk 0:01:17]}  Bg5 {[%clk 0:01:33]} 23. Ne3 {[%clk 0:01:13]}  Bxe3 {[%clk 0:01:32]} 24. Qxe3 {[%clk 0:01:12]}  Nc5 {[%clk 0:01:24]} 25. Bc4 {[%clk 0:01:12]}  Qe7 {[%clk 0:01:19]} 26. Rd5 {[%clk 0:01:08]}  f5 {[%clk 0:00:44]} 27. exf5 {[%clk 0:01:00]}  gxf5 {[%clk 0:00:44]} 28. f4 {[%clk 0:00:51]}  e4 {[%clk 0:00:42]} 29. Qh3 {[%clk 0:00:26]}  Qf6 {[%clk 0:00:38]} 30. Re1 {[%clk 0:00:22]}  Kh8 {[%clk 0:00:36]} 31. Re3 {[%clk 0:00:21]}  Nxa4 {[%clk 0:00:35]} 32. Rd2 {[%clk 0:00:19]}  d5 {[%clk 0:00:32]} 33. Bxd5 {[%clk 0:00:19]}  Nb6 {[%clk 0:00:26]} 34. Qh5 {[%clk 0:00:06]}  Rxd5 {[%clk 0:00:23]} 35. Rh3 {[%clk 0:00:06]}  Rf7 {[%clk 0:00:19]} 36. Rxd5 {[%clk 0:00:06]}  Nxd5 {[%clk 0:00:20]} 37. Qd1 {[%clk 0:00:06]}  Nxf4 {[%clk 0:00:19]} 38. Rg3 {[%clk 0:00:05]}  Rg7 {[%clk 0:00:14]} 39. Rxg7 {[%clk 0:00:05]}  Kxg7 {[%clk 0:00:15]} 40. Qd7+ {[%clk 0:00:04]}  Qf7 {[%clk 0:00:12]} 41. Qd4+ {[%clk 0:00:04]}  Kg6 {[%clk 0:00:10]} 42. Qe3 {[%clk 0:00:04]}  Ne6 {[%clk 0:00:09]} 43. Qg3+ {[%clk 0:00:04]}  Kf6 {[%clk 0:00:10]} 44. Qh4+ {[%clk 0:00:05]}  Ke5 {[%clk 0:00:10]} 45. Qg3+ {[%clk 0:00:05]}  f4 {[%clk 0:00:10]} 46. Qh3 {[%clk 0:00:05]}  Qf5 {[%clk 0:00:08]} 47. Qh4 {[%clk 0:00:05]}  e3 {[%clk 0:00:07]} 48. Qe1 {[%clk 0:00:05]}  Qd3 {[%clk 0:00:06]} 49. c4 {[%clk 0:00:04]}  Nd4 {[%clk 0:00:05]} 50. h3 {[%clk 0:00:04]}  Qd2 {[%clk 0:00:04]} 51. Qh4 {[%clk 0:00:04]}  Qf2+ {[%clk 0:00:03]} 52. Qxf2 {[%clk 0:00:03]}  exf2+ {[%clk 0:00:04]} 53. Kxf2 {[%clk 0:00:04]}  Kd6 {[%clk 0:00:04]} 54. g3 {[%clk 0:00:04]}  fxg3+ {[%clk 0:00:05]} 55. Kxg3 {[%clk 0:00:04]}  Kc5 {[%clk 0:00:06]} 56. Kg4 {[%clk 0:00:05]}  Kxc4 {[%clk 0:00:06]} 57. Kh5 {[%clk 0:00:06]}  Kb3 {[%clk 0:00:07]} 58. Kh6 {[%clk 0:00:07]}  Kxb2 {[%clk 0:00:08]} 59. Kxh7 {[%clk 0:00:08]}  a4 {[%clk 0:00:06]} 60. h4 {[%clk 0:00:09]}  a3 {[%clk 0:00:06]} 61. h5 {[%clk 0:00:10]}  a2 {[%clk 0:00:06]} 62. Kg7 {[%clk 0:00:10]}  a1=Q {[%clk 0:00:06]} 63. h6 {[%clk 0:00:11]}  Nf5+ {[%clk 0:00:06]} 64. Kf8 {[%clk 0:00:11]}  Nxh6 {[%clk 0:00:07]} 65. Kg7 {[%clk 0:00:11]}  Kc3 {[%clk 0:00:06]} 66. Kh7 {[%clk 0:00:11]}  b5 {[%clk 0:00:07]} 67. Kh8 {[%clk 0:00:11]}  b4 {[%clk 0:00:08]} 68. Kh7 {[%clk 0:00:12]}  b3 {[%clk 0:00:09]} 69. Kg7 {[%clk 0:00:13]}  b2 {[%clk 0:00:10]} 70. Kf8 {[%clk 0:00:14]}  b1=Q {[%clk 0:00:10]} 71. Kg7 {[%clk 0:00:15]}  Kd4 {[%clk 0:00:09]} 72. Kh8 {[%clk 0:00:14]}  Ke5 {[%clk 0:00:09]} 73. Kg7 {[%clk 0:00:14]}  Qbb2 {[%clk 0:00:09]} 74. Kh8 {[%clk 0:00:14]}  Kf6 {[%clk 0:00:09]} 75. Kh7 {[%clk 0:00:15]}  Ng8 {[%clk 0:00:08]} 76. Kh8 {[%clk 0:00:14]}  Kg6+ {[%clk 0:00:08]} 77. Kxg8 {[%clk 0:00:14]}  Qg7# {[%clk 0:00:08]} 0-1


[Site "https://www.chess.com"]

[Event "Titled Tuesday Blitz December 27 Late 2022"]
[White "Toniutti, Ezio"]
[Black "Vaibhav Jayant Raut"]
[WhiteFideId "113034"]
[BlackFideId "5089034"]
[WhiteElo "2224"]
[BlackElo "2237"]
[Result "1/2-1/2"]
[Round "09"]
[TimeControl "180+2"]
[Date "2022.12.27"]
[WhiteClock "0:00:17"]
[BlackClock "0:00:17"]

1. d4 {[%clk 0:02:56]}  Nf6 {[%clk 0:02:59]} 2. c4 {[%clk 0:02:57]}  e6 {[%clk 0:02:59]} 3. g3 {[%clk 0:02:57]}  Bb4+ {[%clk 0:02:59]} 4. Bd2 {[%clk 0:02:57]}  a5 {[%clk 0:02:59]} 5. Bg2 {[%clk 0:02:57]}  O-O {[%clk 0:02:59]} 6. e4 {[%clk 0:02:57]}  c5 {[%clk 0:02:57]} 7. Ne2 {[%clk 0:02:35]}  cxd4 {[%clk 0:02:43]} 8. Nxd4 {[%clk 0:02:34]}  Nc6 {[%clk 0:02:43]} 9. Bc3 {[%clk 0:02:25]}  d5 {[%clk 0:02:39]} 10. exd5 {[%clk 0:02:17]}  exd5 {[%clk 0:02:38]} 11. O-O {[%clk 0:02:18]}  Bxc3 {[%clk 0:02:15]} 12. Nxc3 {[%clk 0:02:16]}  Bg4 {[%clk 0:02:15]} 13. Nxc6 {[%clk 0:02:03]}  bxc6 {[%clk 0:02:13]} 14. Qd4 {[%clk 0:02:03]}  Be6 {[%clk 0:02:10]} 15. cxd5 {[%clk 0:02:00]}  cxd5 {[%clk 0:02:07]} 16. Rfd1 {[%clk 0:02:00]}  Rb8 {[%clk 0:02:06]} 17. Rd2 {[%clk 0:02:00]}  Rb4 {[%clk 0:01:55]} 18. Qe5 {[%clk 0:01:56]}  Qb8 {[%clk 0:01:50]} 19. Qxb8 {[%clk 0:01:54]}  Rfxb8 {[%clk 0:01:51]} 20. b3 {[%clk 0:01:53]}  h5 {[%clk 0:01:48]} 21. h3 {[%clk 0:01:52]}  d4 {[%clk 0:01:41]} 22. Ne2 {[%clk 0:01:47]}  Rd8 {[%clk 0:01:36]} 23. Rad1 {[%clk 0:01:46]}  a4 {[%clk 0:01:32]} 24. Rxd4 {[%clk 0:01:44]}  Rdb8 {[%clk 0:01:26]} 25. bxa4 {[%clk 0:01:39]}  Rb2 {[%clk 0:01:15]} 26. Nc3 {[%clk 0:01:36]}  Rc2 {[%clk 0:01:11]} 27. Ne4 {[%clk 0:01:19]}  Rxa2 {[%clk 0:01:02]} 28. Nxf6+ {[%clk 0:01:08]}  gxf6 {[%clk 0:01:02]} 29. h4 {[%clk 0:01:06]}  Rbb2 {[%clk 0:01:00]} 30. Rf4 {[%clk 0:01:06]}  Kg7 {[%clk 0:00:57]} 31. Rc1 {[%clk 0:00:55]}  Ra3 {[%clk 0:00:55]} 32. Bf3 {[%clk 0:00:52]}  Kg6 {[%clk 0:00:44]} 33. Rc5 {[%clk 0:00:52]}  f5 {[%clk 0:00:43]} 34. Rc6 {[%clk 0:00:45]}  Ra1+ {[%clk 0:00:34]} 35. Kg2 {[%clk 0:00:45]}  Raa2 {[%clk 0:00:34]} 36. Bd5 {[%clk 0:00:44]}  Kf6 {[%clk 0:00:32]} 37. Bxe6 {[%clk 0:00:42]}  fxe6 {[%clk 0:00:32]} 38. Rf3 {[%clk 0:00:41]}  Ra1 {[%clk 0:00:28]} 39. Re3 {[%clk 0:00:41]}  Raa2 {[%clk 0:00:19]} 40. Rcxe6+ {[%clk 0:00:40]}  Kf7 {[%clk 0:00:19]} 41. Re7+ {[%clk 0:00:41]}  Kf8 {[%clk 0:00:20]} 42. Re8+ {[%clk 0:00:39]}  Kf7 {[%clk 0:00:20]} 43. R3e7+ {[%clk 0:00:28]}  Kf6 {[%clk 0:00:19]} 44. Re6+ {[%clk 0:00:28]}  Kf7 {[%clk 0:00:19]} 45. R8e7+ {[%clk 0:00:28]}  Kf8 {[%clk 0:00:18]} 46. Re8+ {[%clk 0:00:24]}  Kf7 {[%clk 0:00:18]} 47. R6e7+ {[%clk 0:00:24]}  Kf6 {[%clk 0:00:18]} 48. Re6+ {[%clk 0:00:17]}  Kf7 {[%clk 0:00:17]} 1/2-1/2


[Site "https://www.chess.com"]

[Event "Titled Tuesday Blitz December 27 Late 2022"]
[White "Vasquez Schroeder, Rodrigo"]
[Black "Movahed, Sina"]
[WhiteFideId "3400042"]
[BlackFideId "42520835"]
[WhiteElo "2524"]
[BlackElo "2340"]
[Result "0-1"]
[Round "09"]
[TimeControl "180+2"]
[Date "2022.12.27"]
[WhiteClock "0:00:04"]
[BlackClock "0:00:11"]

1. e4 {[%clk 0:03:00]}  c5 {[%clk 0:02:59]} 2. Nf3 {[%clk 0:03:00]}  d6 {[%clk 0:02:59]} 3. d4 {[%clk 0:03:00]}  cxd4 {[%clk 0:03:00]} 4. Nxd4 {[%clk 0:03:01]}  Nf6 {[%clk 0:02:59]} 5. Nc3 {[%clk 0:03:02]}  a6 {[%clk 0:03:00]} 6. Bg5 {[%clk 0:03:01]}  e6 {[%clk 0:02:59]} 7. f4 {[%clk 0:03:01]}  Be7 {[%clk 0:03:00]} 8. Qf3 {[%clk 0:03:01]}  Qc7 {[%clk 0:03:00]} 9. O-O-O {[%clk 0:03:01]}  Nbd7 {[%clk 0:03:00]} 10. g4 {[%clk 0:03:00]}  b5 {[%clk 0:03:00]} 11. Bxf6 {[%clk 0:02:59]}  Nxf6 {[%clk 0:03:01]} 12. g5 {[%clk 0:03:00]}  Nd7 {[%clk 0:03:02]} 13. f5 {[%clk 0:03:00]}  Bxg5+ {[%clk 0:03:02]} 14. Kb1 {[%clk 0:03:00]}  Ne5 {[%clk 0:03:02]} 15. Qh5 {[%clk 0:03:00]}  h6 {[%clk 0:03:03]} 16. fxe6 {[%clk 0:02:50]}  g6 {[%clk 0:03:02]} 17. Nd5 {[%clk 0:02:47]}  Qb7 {[%clk 0:02:58]} 18. Qh3 {[%clk 0:02:38]}  O-O {[%clk 0:02:57]} 19. exf7+ {[%clk 0:02:27]}  Qxf7 {[%clk 0:02:51]} 20. Qg3 {[%clk 0:02:27]}  Qf2 {[%clk 0:02:15]} 21. Qb3 {[%clk 0:02:20]}  Kh7 {[%clk 0:02:14]} 22. h4 {[%clk 0:02:11]}  Bxh4 {[%clk 0:02:09]} 23. Bh3 {[%clk 0:02:10]}  Qg3 {[%clk 0:01:55]} 24. Bxc8 {[%clk 0:01:59]}  Raxc8 {[%clk 0:01:56]} 25. c3 {[%clk 0:01:41]}  Rf2 {[%clk 0:01:43]} 26. Ka1 {[%clk 0:01:27]}  Nc4 {[%clk 0:01:38]} 27. Rdg1 {[%clk 0:01:21]}  Rg2 {[%clk 0:01:28]} 28. Qd1 {[%clk 0:01:10]}  Qf2 {[%clk 0:01:00]} 29. Qb1 {[%clk 0:00:46]}  Bg3 {[%clk 0:00:29]} 30. Rf1 {[%clk 0:00:39]}  Qxb2+ {[%clk 0:00:28]} 31. Qxb2 {[%clk 0:00:39]}  Nxb2 {[%clk 0:00:22]} 32. Rf7+ {[%clk 0:00:38]}  Kg8 {[%clk 0:00:22]} 33. Ra7 {[%clk 0:00:30]}  Rf8 {[%clk 0:00:21]} 34. Ne7+ {[%clk 0:00:29]}  Kf7 {[%clk 0:00:22]} 35. Nef5+ {[%clk 0:00:17]}  Kf6 {[%clk 0:00:21]} 36. Nxh6 {[%clk 0:00:15]}  Kg5 {[%clk 0:00:17]} 37. Nf7+ {[%clk 0:00:15]}  Kf6 {[%clk 0:00:17]} 38. Nh6 {[%clk 0:00:14]}  Nc4 {[%clk 0:00:13]} 39. Ng4+ {[%clk 0:00:09]}  Kg5 {[%clk 0:00:12]} 40. Ne6+ {[%clk 0:00:10]}  Kxg4 {[%clk 0:00:13]} 41. Nxf8 {[%clk 0:00:10]}  Be5 {[%clk 0:00:14]} 42. Nxg6 {[%clk 0:00:07]}  Bxc3+ {[%clk 0:00:14]} 43. Kb1 {[%clk 0:00:08]}  Bb2 {[%clk 0:00:13]} 44. a4 {[%clk 0:00:07]}  b4 {[%clk 0:00:12]} 45. Rf7 {[%clk 0:00:04]}  b3 {[%clk 0:00:11]} 0-1


[Site "https://www.chess.com"]